bitfinex-derivatives/quotes_SOLF0:USTF0_20250522
["timestamp","ask_amount","ask_price","bid_price","bid_amount"]
[1747889141486,0.04219907,177.12,177.09,134.50291425]
[1747889142186,0.04219907,177.12,177.1,5.6456]
[1747889142388,0.04219907,177.12,177.09,134.50291425]
[1747889142684,0.04219907,177.12,177.11,5.6453]
[1747889143389,0.04219907,177.12,177.1,5.6455]
[1747889144088,0.04219907,177.12,177.09,134.50291425]
[1747889144486,0.04219907,177.12,177.1,5.6455]
[1747889144687,0.04219907,177.12,177.09,134.50291425]
[1747889145291,0.04219907,177.12,177.09,140.14881425]
[1747889145588,0.04219907,177.12,177.09,134.50291425]
[1747889145890,0.04219907,177.12,177.1,5.6453]
[1747889146878,0.04219907,177.12,177.09,140.14881425]
[1747889147585,0.04219907,177.12,177.1,5.6456]
[1747889148087,0.04219907,177.12,177.09,134.50291425]
[1747889148289,0.04219907,177.12,177.11,5.6453]
[1747889151298,5.6431,177.18,177.09,134.50291425]
[1747889151487,5.6431,177.18,177.09,134.46]
[1747889151794,134.5757,177.21,177.09,134.46]
[1747889151994,134.5757,177.21,177.12,5.6447]
[1747889152289,0.04246247,177.18,177.12,5.6447]
[1747889152499,0.04246247,177.18,177.15,0.03833849]
[1747889153189,5.6434,177.17,177.15,0.03833849]
[1747889153397,0.04246247,177.18,177.15,0.03833849]
[1747889153997,5.68556247,177.18,177.15,0.03833849]
[1747889154296,0.04246247,177.18,177.15,0.03833849]
[1747889154497,5.6437,177.16,177.15,0.03833849]
[1747889155198,0.04246247,177.18,177.15,0.03833849]
[1747889155794,5.68576247,177.18,177.15,0.03833849]
[1747889156099,0.04246247,177.18,177.15,0.03833849]
[1747889157800,5.6437,177.16,177.15,0.03833849]
[1747889159906,5.6434,177.17,177.15,0.03833849]
[1747889160095,0.04246247,177.18,177.15,0.03833849]
[1747889161203,5.6437,177.16,177.15,0.03833849]
[1747889161497,0.04246247,177.18,177.15,0.03833849]
[1747889162410,5.68556247,177.18,177.15,0.03833849]
[1747889162594,0.04246247,177.18,177.15,0.03833849]
[1747889163500,5.6437,177.16,177.15,0.03833849]
[1747889163803,0.04246247,177.18,177.15,0.03833849]
[1747889163998,0.04246247,177.18,177.09,140.71862802]
[1747889164208,5.6439,177.16,177.09,140.71862802]
[1747889164405,5.6439,177.16,177.12,5.6447]
[1747889164609,5.6439,177.16,177.09,140.71862802]
[1747889164808,134.5757,177.21,177.12,5.6448]
[1747889165002,0.04205727,177.18,177.15,0.03663754]
[1747889166309,5.6437,177.16,177.15,0.03663754]
[1747889166796,0.04205727,177.18,177.07,132.48]
[1747889166999,5.6453,177.12,177.08,5.6461]
[1747889167513,5.6453,177.12,177.07,132.48]
[1747889167514,5.6453,177.12,177.09,5.6459]
[1747889167807,0.03883222,177.12,177.09,5.68421625]
[1747889168316,0.03883222,177.12,177.09,0.03831625]
[1747889168800,0.03883222,177.12,177.11,5.6453]
[1747889171712,0.03883222,177.12,177.1,138.1455]
[1747889172212,0.03883222,177.12,177.1,132.5]
[1747889173612,0.03883222,177.12,177.11,5.6453]
[1747889175211,6.98488261,177.22,177.11,120.14028953]
[1747889175507,6.98488261,177.22,177.15,7.22553659]
[1747889175714,6.98488261,177.22,177.21,5.6421]
[1747889177314,6.98488261,177.22,177.2,5.67903996]
[1747889177515,6.98488261,177.22,177.2,0.03673996]
[1747889178516,5.67814489,177.23,177.2,0.03673996]
[1747889180217,5.6418,177.22,177.2,0.03673996]
[1747889182018,5.67814489,177.23,177.2,0.03673996]
[1747889182316,0.03664489,177.23,177.2,0.03673996]
[1747889182718,0.03664489,177.23,177.21,5.6421]
[1747889182920,0.03664489,177.23,177.2,0.03673996]
[1747889183821,0.03664489,177.23,177.22,5.6418]
[1747889184412,138.9437,177.31,177.27,5.64]
[1747889184713,133.3045,177.31,177.21,129.26]
[1747889184918,138.9435,177.31,177.21,136.48299392]
[1747889185118,138.9435,177.31,177.27,5.6399]
[1747889185516,131.35828739,177.31,177.27,0.04197194]
[1747889185710,131.35828739,177.31,177.28,5.6397]
[1747889185711,2.09828739,177.31,177.28,5.6397]
[1747889186215,0.04328739,177.31,177.27,0.04197194]
[1747889186916,0.04328739,177.31,177.28,5.6396]
[1747889187516,0.04328739,177.31,177.29,5.6395]
[1747889187927,0.04328739,177.31,177.28,5.6398]
[1747889188726,0.04328739,177.31,177.27,0.04197194]
[1747889190228,5.6393,177.3,177.27,0.04197194]
[1747889190418,0.04328739,177.31,177.27,0.04197194]
[1747889190912,5.6393,177.3,177.27,0.04197194]
[1747889191119,0.04328739,177.31,177.27,0.04197194]
[1747889191324,5.6393,177.3,177.27,0.04197194]
[1747889191517,0.04328739,177.31,177.27,0.04197194]
[1747889192025,5.6394,177.3,177.27,0.04197194]
[1747889193024,0.04328739,177.31,177.27,0.04197194]
[1747889194126,5.6399,177.28,177.27,0.04197194]
[1747889195326,5.6396,177.29,177.27,0.04197194]
[1747889195724,5.6393,177.3,177.27,0.04197194]
[1747889196128,0.04328739,177.31,177.27,0.04197194]
[1747889197227,5.6393,177.3,177.27,0.04197194]
[1747889197531,0.04328739,177.31,177.27,0.04197194]
[1747889198424,5.6399,177.28,177.27,0.04197194]
[1747889199423,5.6396,177.29,177.27,0.04197194]
[1747889199624,0.04328739,177.31,177.27,0.04197194]
[1747889200133,5.6396,177.29,177.27,0.04197194]
[1747889203434,5.6399,177.28,177.27,0.04197194]
[1747889203834,0.04328739,177.31,177.27,0.04197194]
[1747889204134,5.6396,177.29,177.27,0.04197194]
[1747889204334,0.04328739,177.31,177.27,0.04197194]
[1747889205234,0.04328739,177.31,177.28,5.6398]
[1747889206436,5.68228739,177.31,177.28,5.6398]
[1747889206836,0.04328739,177.31,177.27,5.68207194]
[1747889207036,0.04328739,177.31,177.27,0.04197194]
[1747889207938,5.6399,177.28,177.27,0.04197194]
[1747889211237,5.6411,177.25,177.21,5.642]
[1747889211839,5.6411,177.25,177.22,5.6417]
[1747889212143,5.68142106,177.25,177.22,5.68046323]
[1747889212344,0.04032106,177.25,177.22,5.68046323]
[1747889215241,0.04032106,177.25,177.23,5.6414]
[1747889217150,0.04032106,177.25,177.24,5.6411]
[1747889218144,129.6271,177.34,177.28,5.6396]
[1747889218457,129.6271,177.34,177.21,7.22299392]
[1747889218751,129.6271,177.34,177.24,5.6411]
[1747889218936,129.6271,177.34,177.22,127.7]
[1747889219138,0.03971476,177.3,177.26,5.68088339]
[1747889219647,0.03971476,177.3,177.26,0.04048339]
[1747889221050,5.6401,177.28,177.26,0.04048339]
[1747889223150,5.6402,177.27,177.26,0.04048339]
[1747889225950,5.6399,177.28,177.26,0.04048339]
[1747889226147,127.73971476,177.3,177.26,0.04048339]
[1747889226455,5.6397,177.29,177.26,0.04048339]
[1747889226656,127.73971476,177.3,177.26,0.04048339]
[1747889227256,133.37911476,177.3,177.26,5.68068339]
[1747889228350,127.73971476,177.3,177.26,0.04048339]
[1747889228652,0.03971476,177.3,177.26,0.04048339]
[1747889228957,0.03971476,177.3,177.28,5.6396]
[1747889229760,0.03971476,177.3,177.26,0.04048339]
[1747889232459,0.03971476,177.3,177.27,5.6401]
[1747889232762,0.03971476,177.3,177.26,0.04048339]
[1747889232959,0.03971476,177.3,177.29,5.6395]
[1747889235764,0.03971476,177.3,177.28,5.6397]
[1747889236858,0.03971476,177.3,177.27,1.00326253]
[1747889237266,0.03971476,177.3,177.26,126.84048339]
[1747889237866,0.03971476,177.3,177.29,5.6395]
[1747889239569,0.03971476,177.3,177.28,5.6397]
[1747889239870,0.03971476,177.3,177.26,126.84048339]
[1747889240070,0.03971476,177.3,177.29,5.6395]
[1747889242869,0.03971476,177.3,177.28,5.6398]
[1747889243072,0.03971476,177.3,177.26,0.04048339]
[1747889243967,0.03971476,177.3,177.29,5.6395]
[1747889247473,1.9711,177.36,177.31,5.6387]
[1747889248074,126.82,177.37,177.31,5.6387]
[1747889248372,0.04047723,177.36,177.32,0.03808152]
[1747889248972,5.6376,177.35,177.32,0.03808152]
[1747889249179,0.04047723,177.36,177.32,0.03808152]
[1747889250776,5.6382,177.33,177.32,0.03808152]
[1747889252475,0.04047723,177.36,177.32,0.03808152]
[1747889253879,5.6378,177.35,177.32,0.03808152]
[1747889255376,0.04047723,177.36,177.32,0.03808152]
[1747889255576,5.67787723,177.36,177.32,0.03808152]
[1747889255777,5.67787723,177.36,177.32,5.67648152]
[1747889256274,5.67787723,177.36,177.32,0.03808152]
[1747889256875,5.67787723,177.36,177.32,5.67658152]
[1747889257476,0.04047723,177.36,177.33,5.6382]
[1747889257779,0.04047723,177.36,177.32,0.03808152]
[1747889258080,0.04047723,177.36,177.33,5.6382]
[1747889259381,0.04047723,177.36,177.32,0.03808152]
[1747889259982,0.04047723,177.36,177.33,5.638]
[1747889260280,0.04047723,177.36,177.32,0.03808152]
[1747889260582,0.04047723,177.36,177.33,5.6382]
[1747889260967,0.04047723,177.36,177.32,0.03808152]
[1747889261782,0.04047723,177.36,177.34,5.6377]
[1747889262571,5.67797723,177.36,177.32,0.03808152]
[1747889263088,5.67797723,177.36,177.32,5.67658152]
[1747889263279,5.6377,177.35,177.32,0.03808152]
[1747889263982,0.04047723,177.36,177.32,0.03808152]
[1747889264284,5.67797723,177.36,177.32,0.03808152]
[1747889264787,5.67797723,177.36,177.32,5.67638152]
[1747889265192,0.04047723,177.36,177.32,0.03808152]
[1747889265775,5.67797723,177.36,177.32,0.03808152]
[1747889265979,0.04047723,177.36,177.32,0.03808152]
[1747889266182,5.67777723,177.36,177.32,0.03808152]
[1747889267088,5.67777723,177.36,177.32,5.67658152]
[1747889267289,5.6376,177.35,177.32,0.03808152]
[1747889267888,5.67777723,177.36,177.32,0.03808152]
[1747889268090,0.04047723,177.36,177.32,0.03808152]
[1747889268795,0.04047723,177.36,177.33,5.6382]
[1747889268996,0.04047723,177.36,177.32,0.03808152]
[1747889269493,126.72,177.35,177.32,0.03808152]
[1747889269687,5.6382,177.33,177.32,0.03808152]
[1747889270492,5.638,177.34,177.32,0.03808152]
[1747889271198,132.3576,177.35,177.32,0.03808152]
[1747889271499,126.72,177.35,177.32,0.03808152]
[1747889272802,5.6382,177.34,177.32,0.03808152]
[1747889273088,126.72,177.35,177.32,0.03808152]
[1747889274294,5.6382,177.33,177.32,0.03808152]
[1747889279993,5.6398,177.29,177.25,1.00326253]
[1747889280198,1.9416,177.32,177.25,1.00326253]
[1747889280592,5.6404,177.27,177.25,1.00326253]
[1747889281096,5.67582169,177.28,177.25,1.00326253]
[1747889281398,0.03582169,177.28,177.25,1.00326253]
[1747889281702,5.6401,177.27,177.25,1.00326253]
[1747889282000,0.03582169,177.28,177.25,1.00326253]
[1747889282695,0.03582169,177.28,177.24,0.04099268]
[1747889283398,0.03582169,177.28,177.25,5.6407]
[1747889283996,0.03582169,177.28,177.24,5.68199268]
[1747889284692,5.67572169,177.28,177.25,5.6408]
[1747889284898,0.03582169,177.28,177.25,5.6408]
[1747889286499,5.6404,177.27,177.24,0.04099268]
[1747889286998,0.03582169,177.28,177.24,5.68199268]
[1747889287494,5.67572169,177.28,177.24,5.68199268]
[1747889289002,5.67572169,177.28,177.25,5.6407]
[1747889289189,0.03582169,177.28,177.24,0.04099268]
[1747889289600,0.03582169,177.28,177.25,5.6405]
[1747889292605,0.03582169,177.28,177.26,5.6404]
[1747889296003,0.03582169,177.28,177.25,5.6407]
[1747889298405,5.67562169,177.28,177.25,5.6407]
[1747889301504,5.6402,177.27,177.24,0.04099268]
[1747889301707,0.03582169,177.28,177.24,0.04099268]
[1747889302206,5.6408,177.25,177.24,0.04099268]
[1747889302407,0.03582169,177.28,177.24,0.04099268]
[1747889303309,5.6402,177.27,177.24,0.04099268]
[1747889303910,5.6402,177.27,177.24,5.68209268]
[1747889304701,0.03582169,177.28,177.24,0.04099268]
[1747889304908,5.6406,177.26,177.24,0.04099268]
[1747889305811,5.6408,177.25,177.24,0.04099268]
[1747889312717,5.6405,177.26,177.24,0.04099268]
[1747889313216,0.03582169,177.28,177.24,0.04099268]
[1747889313920,0.03582169,177.28,177.25,5.6407]
[1747889314117,0.03582169,177.28,177.24,0.04099268]
[1747889315918,5.6408,177.25,177.24,0.04099268]
[1747889322123,5.6408,177.25,177.24,9.268e-05]
[1747889322820,5.643,177.18,177.17,1.00326253]
[1747889324024,5.643,177.18,177.16,0.03560444]
[1747889324323,5.67935062,177.19,177.16,0.03560444]
[1747889325333,5.6431,177.18,177.16,0.03560444]
[1747889325825,0.03665062,177.19,177.16,0.03560444]
[1747889326024,5.643,177.18,177.16,0.03560444]
[1747889326229,0.03665062,177.19,177.16,0.03560444]
[1747889326429,5.6433,177.17,177.16,0.03560444]
[1747889328128,5.6448,177.13,177.1,1.00326253]
[1747889328324,126.72,177.16,177.1,1.00326253]
[1747889329223,0.03984111,177.15,177.11,0.03961002]
[1747889330430,5.6449,177.12,177.11,0.03961002]
[1747889333531,0.03984111,177.15,177.11,0.03961002]
[1747889335332,5.6449,177.12,177.11,0.03961002]
[1747889337024,5.6467,177.07,177.01,126.78]
[1747889337427,5.6467,177.07,177.03,5.6477]
[1747889337725,5.6467,177.07,177.01,126.78]
[1747889337726,5.6469,177.06,177.0,1.00326253]
[1747889337930,126.78,177.11,177.0,1.00326253]
[1747889338126,126.78,177.11,177.04,0.03957716]
[1747889338127,0.042171,177.07,177.04,0.03957716]
[1747889338528,126.78,177.06,177.04,0.03957716]
[1747889338934,5.6472,177.05,177.04,0.03957716]
[1747889341337,126.78,177.06,177.04,0.03957716]
[1747889341837,0.042171,177.07,177.04,0.03957716]
[1747889342635,5.688871,177.07,177.04,0.03957716]
[1747889342840,0.042171,177.07,177.04,0.03957716]
[1747889343035,5.6468,177.06,177.04,0.03957716]
[1747889343537,0.042171,177.07,177.04,0.03957716]
[1747889344040,5.688671,177.07,177.04,5.68697716]
[1747889344636,5.6469,177.06,177.04,0.03957716]
[1747889345442,5.6471,177.05,177.04,0.03957716]
[1747889346342,5.6469,177.06,177.04,0.03957716]
[1747889346642,0.042171,177.07,177.04,0.03957716]
[1747889346844,0.042171,177.07,177.05,5.6471]
[1747889347045,0.042171,177.07,177.04,0.03957716]
[1747889347642,0.042171,177.07,177.04,5.68677716]
[1747889348050,0.042171,177.07,177.04,0.03957716]
[1747889348238,0.042171,177.07,177.05,5.6471]
[1747889349243,0.042171,177.07,177.06,5.6468]
[1747889349946,0.042171,177.07,177.05,5.647]
[1747889350244,0.042171,177.07,177.04,0.03957716]
[1747889351144,0.042171,177.07,177.05,5.6469]
[1747889351340,0.042171,177.07,177.04,0.03957716]
[1747889351937,0.042171,177.07,177.06,5.6468]
[1747889360752,0.042171,177.07,177.05,5.6471]
[1747889360952,0.042171,177.07,177.04,0.03957716]
[1747889361654,0.042171,177.07,177.04,5.68677716]
[1747889362046,0.042171,177.07,177.05,5.6471]
[1747889362246,0.042171,177.07,177.04,0.03957716]
[1747889362647,0.042171,177.07,177.05,5.6469]
[1747889362854,0.042171,177.07,177.04,0.03957716]
[1747889363156,0.042171,177.07,177.04,5.68677716]
[1747889363657,5.688771,177.07,177.04,5.68677716]
[1747889363957,0.042171,177.07,177.04,5.68677716]
[1747889365660,0.042171,177.07,177.05,5.6471]
[1747889366054,5.688671,177.07,177.04,0.03957716]
[1747889366256,0.042171,177.07,177.04,0.03957716]
[1747889366857,5.6471,177.05,177.04,0.03957716]
[1747889368964,5.6485,177.01,176.99,1.00326253]
[1747889369360,6.0675,177.07,176.97,132.2494]
[1747889369566,5.6483,177.02,176.97,132.2494]
[1747889369868,0.04149204,177.01,176.98,0.04326498]
[1747889371675,5.649,177.0,176.98,0.04326498]
[1747889372175,5.6491,176.99,176.98,0.04326498]
[1747889372375,0.04149204,177.01,176.98,0.04326498]
[1747889374275,0.04149204,177.01,177.0,5.6487]
[1747889377178,126.64,177.05,177.01,5.6481]
[1747889377676,126.64,177.05,177.0,5.6486]
[1747889378082,0.04015516,177.04,177.0,5.6486]
[1747889378582,0.04015516,177.04,176.98,126.68326498]
[1747889379083,0.04015516,177.04,177.02,5.6479]
[1747889379281,0.04015516,177.04,176.98,126.68326498]
[1747889380282,5.68765516,177.04,177.0,5.6485]
[1747889380883,5.68765516,177.04,177.01,5.6484]
[1747889381086,0.04015516,177.04,176.98,126.68326498]
[1747889381786,5.68765516,177.04,176.98,126.68326498]
[1747889382586,5.68765516,177.04,177.01,5.6483]
[1747889384891,5.6478,177.03,176.99,5.6487]
[1747889385093,0.04015516,177.04,176.99,5.6487]
[1747889385591,5.6484,177.02,176.98,132.33256498]
[1747889385785,5.6484,177.02,176.98,126.68326498]
[1747889386490,5.6478,177.03,176.98,126.68326498]
[1747889386690,0.04015516,177.04,176.98,126.68326498]
[1747889387894,5.68775516,177.04,177.0,5.6485]
[1747889388192,5.68775516,177.04,176.98,126.68326498]
[1747889388591,5.68775516,177.04,177.0,5.6485]
[1747889388792,5.68775516,177.04,176.98,126.68326498]
[1747889389192,5.68775516,177.04,177.01,5.6483]
[1747889389589,5.68775516,177.04,176.98,126.68326498]
[1747889390193,0.04015516,177.04,176.98,126.68326498]
[1747889391692,5.68775516,177.04,177.0,5.6485]
[1747889391894,5.68775516,177.04,176.98,126.68326498]
[1747889392494,0.04015516,177.04,176.99,7.22299392]
[1747889393594,5.68765516,177.04,177.01,5.6483]
[1747889393998,5.68765516,177.04,176.99,7.22299392]
[1747889394293,0.04015516,177.04,176.99,7.22299392]
[1747889395394,5.6481,177.02,176.99,7.22299392]
[1747889395996,0.04015516,177.04,176.99,7.22299392]
[1747889396387,5.6478,177.03,176.99,12.87189392]
[1747889396886,0.04015516,177.04,176.99,5.6489]
[1747889397596,5.6481,177.02,176.99,5.6489]
[1747889398388,0.04015516,177.04,176.98,0.04326498]
[1747889398389,5.649,176.99,176.98,0.04326498]
[1747889400299,5.65,176.96,176.95,1.00326253]
[1747889401600,5.65,176.96,176.94,0.04068819]
[1747889401798,128.50103781,177.0,176.88,1.00353087]
[1747889402002,126.38,176.99,176.88,1.00353087]
[1747889402201,5.6522,176.89,176.88,1.00353087]
[1747889403213,5.6526,176.88,176.87,8.714e-05]
[1747889404007,132.0326,176.88,176.87,8.714e-05]
[1747889410210,134.0378,176.88,176.87,8.714e-05]
[1747889413521,139.6978,176.88,176.87,8.714e-05]
[1747889413715,5.6551,176.8,176.76,5.6564]
[1747889413916,126.46,176.83,176.75,2.0723]
[1747889414415,5.6554,176.8,176.75,7.7288]
[1747889414609,126.46,176.83,176.75,7.7288]
[1747889414817,0.03856599,176.81,176.77,0.04286811]
[1747889416125,5.6552,176.8,176.77,0.04286811]
[1747889416325,0.03856599,176.81,176.77,0.04286811]
[1747889417528,5.6555,176.79,176.77,0.04286811]
[1747889418326,5.6552,176.8,176.77,0.04286811]
[1747889418625,0.03856599,176.81,176.77,0.04286811]
[1747889418825,5.6552,176.8,176.77,0.04286811]
[1747889419125,0.03856599,176.81,176.77,0.04286811]
[1747889419523,126.16,176.86,176.77,0.04286811]
[1747889419726,126.16,176.86,176.75,9.29529392]
[1747889420526,0.03725959,176.82,176.81,5.6545]
[1747889421124,0.03725959,176.82,176.8,5.6551]
[1747889421426,0.03725959,176.82,176.79,0.04202002]
[1747889422832,0.03725959,176.82,176.8,5.655]
[1747889423326,0.03725959,176.82,176.79,5.69732002]
[1747889424134,0.03725959,176.82,176.8,5.6549]
[1747889425632,0.03725959,176.82,176.81,5.6548]
[1747889426634,0.03725959,176.82,176.8,5.655]
[1747889426828,0.03725959,176.82,176.79,0.04202002]
[1747889427432,0.03725959,176.82,176.81,5.6548]
[1747889430236,0.03725959,176.82,176.79,0.04202002]
[1747889430740,0.03725959,176.82,176.8,5.6548]
[1747889430930,5.69175959,176.82,176.79,0.04202002]
[1747889431126,0.03725959,176.82,176.79,0.04202002]
[1747889431345,0.03725959,176.82,176.8,5.655]
[1747889431635,0.03725959,176.82,176.79,0.04202002]
[1747889431837,0.03725959,176.82,176.81,5.6548]
[1747889438344,126.18,176.9,176.8,7.22299392]
[1747889438841,126.18,176.9,176.81,2.0811]
[1747889439142,5.6523,176.89,176.81,2.0811]
[1747889439342,0.04224956,176.87,176.83,0.03739853]
[1747889440043,0.04224956,176.87,176.85,5.6533]
[1747889440245,0.04224956,176.87,176.83,0.03739853]
[1747889441144,0.04224956,176.87,176.85,5.6535]
[1747889441345,0.04224956,176.87,176.83,0.03739853]
[1747889441643,5.6533,176.86,176.83,0.03739853]
[1747889442145,5.6537,176.85,176.83,0.03739853]
[1747889442647,0.04224956,176.87,176.83,0.03739853]
[1747889442843,5.69534956,176.87,176.83,5.69149853]
[1747889443043,0.04224956,176.87,176.83,5.69149853]
[1747889443245,0.04224956,176.87,176.83,0.03739853]
[1747889443543,0.04224956,176.87,176.83,5.69139853]
[1747889443741,0.04224956,176.87,176.83,0.03739853]
[1747889444138,5.6538,176.84,176.83,0.03739853]
[1747889446048,131.8136,176.85,176.83,0.03739853]
[1747889446252,126.16,176.85,176.83,0.03739853]
[1747889446852,5.6538,176.84,176.83,0.03739853]
[1747889453857,131.8136,176.85,176.83,0.03739853]
[1747889454055,126.16,176.85,176.83,0.03739853]
[1747889454557,5.6538,176.84,176.83,0.03739853]
[1747889456758,5.6558,176.78,176.74,1.9687]
[1747889456960,126.16,176.85,176.75,5.6565]
[1747889457158,126.16,176.85,176.75,7.22299392]
[1747889457356,126.16,176.85,176.8,5.655]
[1747889457658,0.03651171,176.84,176.81,0.04211475]
[1747889458861,5.69041171,176.84,176.81,0.04211475]
[1747889459062,0.03651171,176.84,176.81,0.04211475]
[1747889459358,5.69041171,176.84,176.81,0.04211475]
[1747889460164,5.6541,176.83,176.81,0.04211475]
[1747889460861,5.69041171,176.84,176.81,0.04211475]
[1747889461156,0.03651171,176.84,176.81,5.69681475]
[1747889461362,0.03651171,176.84,176.81,0.04211475]
[1747889461861,0.03651171,176.84,176.83,5.6541]
[1747889462654,0.03651171,176.84,176.82,5.6544]
[1747889462963,0.03651171,176.84,176.81,0.04211475]
[1747889463262,0.03651171,176.84,176.82,5.6544]
[1747889463451,0.03651171,176.84,176.81,0.04211475]
[1747889464062,5.6544,176.83,176.81,0.04211475]
[1747889464268,0.03651171,176.84,176.81,0.04211475]
[1747889464664,5.6544,176.82,176.81,0.04211475]
[1747889468962,0.03651171,176.84,176.81,0.04211475]
[1747889469458,0.03651171,176.84,176.81,5.69661475]
[1747889469855,0.03651171,176.84,176.81,0.04211475]
[1747889470475,0.03651171,176.84,176.82,5.6542]
[1747889470767,0.03651171,176.84,176.81,0.04211475]
[1747889471372,0.03651171,176.84,176.82,5.6544]
[1747889471574,0.03651171,176.84,176.81,0.04211475]
[1747889471869,0.03651171,176.84,176.82,5.6544]
[1747889474170,0.03651171,176.84,176.81,0.04211475]
[1747889474570,0.03651171,176.84,176.81,5.69661475]
[1747889474774,0.03651171,176.84,176.81,0.04211475]
[1747889475876,0.03651171,176.84,176.81,5.69671475]
[1747889476268,0.03651171,176.84,176.81,0.04211475]
[1747889477475,5.6543,176.83,176.81,0.04211475]
[1747889478374,5.69041171,176.84,176.81,0.04211475]
[1747889479075,5.69041171,176.84,176.81,5.69681475]
[1747889479476,5.6541,176.83,176.81,0.04211475]
[1747889480070,5.69041171,176.84,176.81,0.04211475]
[1747889480575,0.03651171,176.84,176.81,0.04211475]
[1747889482577,5.6543,176.83,176.81,0.04211475]
[1747889482880,0.03651171,176.84,176.81,0.04211475]
[1747889483378,5.6544,176.82,176.81,0.04211475]
[1747889483678,0.03651171,176.84,176.81,0.04211475]
[1747889484579,5.6542,176.83,176.81,0.04211475]
[1747889484969,0.03651171,176.84,176.81,0.04211475]
[1747889485472,5.6544,176.82,176.81,0.04211475]
[1747889491187,5.6544,176.82,176.81,1.475e-05]
[1747889491489,11.3144,176.82,176.81,1.475e-05]
[1747889491785,5.66,176.82,176.73,1.00377491]
[1747889491987,136.73809392,176.83,176.73,1.00377491]
[1747889492783,0.03682353,176.8,176.76,0.03938867]
[1747889492988,5.656,176.77,176.76,0.03938867]
[1747889493289,0.03682353,176.8,176.76,0.03938867]
[1747889494286,5.656,176.77,176.76,0.03938867]
[1747889494484,125.54,176.78,176.69,6.66227491]
[1747889494683,125.54,176.78,176.69,1.00377491]
[1747889494885,5.6569,176.75,176.69,1.00377491]
[1747889495291,125.54,176.78,176.71,5.6579]
[1747889495490,0.03636226,176.76,176.73,0.03687449]
[1747889495989,5.6567,176.75,176.73,0.03687449]
[1747889496190,0.03636226,176.76,176.73,0.03687449]
[1747889496593,5.657,176.74,176.73,0.03687449]
[1747889497681,5.6585,176.7,176.67,1.00377491]
[1747889498087,125.56,176.73,176.67,1.00377491]
[1747889498700,0.04188121,176.72,176.68,0.04140607]
[1747889499700,5.6586,176.69,176.68,0.04140607]
[1747889503195,5.658,176.71,176.68,0.04140607]
[1747889503803,5.6584,176.7,176.68,0.04140607]
[1747889504001,2.07438121,176.72,176.68,0.04140607]
[1747889504403,5.6581,176.71,176.68,0.04140607]
[1747889505005,0.04188121,176.72,176.68,0.04140607]
[1747889505813,5.658,176.71,176.68,0.04140607]
[1747889506100,0.04188121,176.72,176.68,0.04140607]
[1747889506290,5.69948121,176.72,176.68,0.04140607]
[1747889506797,0.04188121,176.72,176.68,0.04140607]
[1747889507206,5.69958121,176.72,176.68,5.70020607]
[1747889511407,5.69958121,176.72,176.69,5.6585]
[1747889513112,5.69958121,176.72,176.68,5.70020607]
[1747889513322,5.69958121,176.72,176.68,0.04140607]
[1747889514311,0.04188121,176.72,176.69,5.6583]
[1747889514513,0.04188121,176.72,176.68,0.04140607]
[1747889515520,0.04188121,176.72,176.7,5.6582]
[1747889517408,0.04188121,176.72,176.71,5.6579]
[1747889521513,125.26,176.77,176.75,5.6565]
[1747889521720,125.26,176.77,176.68,3.9578]
[1747889521923,621.5977,176.81,176.68,3.9578]
[1747889522119,621.5977,176.81,176.7,7.22299392]
[1747889522419,615.9428,176.81,176.71,125.24]
[1747889522719,0.03634542,176.77,176.74,5.69681139]
[1747889523915,0.03634542,176.77,176.74,0.04021139]
[1747889524315,5.69254542,176.77,176.74,0.04021139]
[1747889524923,5.6564,176.76,176.74,0.04021139]
[1747889525117,0.03634542,176.77,176.74,0.04021139]
[1747889525519,5.6566,176.76,176.74,0.04021139]
[1747889526725,5.6566,176.75,176.74,0.04021139]
[1747889527124,0.03634542,176.77,176.74,0.04021139]
[1747889527423,5.6565,176.76,176.74,0.04021139]
[1747889527817,0.03634542,176.77,176.74,0.04021139]
[1747889528123,0.03634542,176.77,176.76,5.6563]
[1747889528511,0.03634542,176.77,176.74,0.04021139]
[1747889528717,0.03634542,176.77,176.75,5.6564]
[1747889529931,0.03634542,176.77,176.74,5.69711139]
[1747889530626,0.03634542,176.77,176.74,0.04021139]
[1747889531126,5.6566,176.75,176.74,0.04021139]
[1747889531329,0.03634542,176.77,176.74,0.04021139]
[1747889534327,0.03634542,176.77,176.75,5.6563]
[1747889536030,0.03634542,176.77,176.76,5.6563]
[1747889538929,125.24,176.83,176.79,5.6551]
[1747889539832,125.27610246,176.83,176.79,5.6940214]